bitfinex-derivatives/quotes_SOLF0:USTF0_20251202
["timestamp","ask_amount","ask_price","bid_price","bid_amount"]
[1764696085164,3.16502305,140.3,140.28,0.05283016]
[1764696085663,3.16502305,140.3,140.29,1.73792848]
[1764696086660,3.16502305,140.3,140.29,1.73715111]
[1764696086856,3.16502305,140.3,140.28,0.05283016]
[1764696090361,3.24,140.39,140.28,0.05283016]
[1764696090561,102.9622,140.38,140.33,1.73377769]
[1764696090771,3.24,140.36,140.34,1.73377769]
[1764696090966,3.24,140.36,140.28,8.705731]
[1764696091170,6.4118,140.35,140.34,1.73248753]
[1764696091368,0.04583091,140.36,140.34,1.73248753]
[1764696091772,0.04583091,140.36,140.35,1.73248753]
[1764696092065,0.04583091,140.36,140.33,0.05323267]
[1764696093568,0.04583091,140.36,140.33,6.46573267]
[1764696093977,0.04583091,140.36,140.34,6.412]
[1764696095963,0.04583091,140.36,140.33,0.05323267]
[1764696097367,3.24583091,140.36,140.33,0.05323267]
[1764696097573,3.24583091,140.36,140.34,1.72135531]
[1764696098374,0.04583091,140.36,140.34,1.72135531]
[1764696098570,0.04583091,140.36,140.33,0.05323267]
[1764696099373,3.11583091,140.36,140.35,1.7212443]
[1764696099574,3.11583091,140.36,140.34,1.7212443]
[1764696101777,3.07,140.35,140.34,1.7212443]
[1764696101976,3.07,140.35,140.33,0.05323267]
[1764696103272,3.11583091,140.36,140.25,99.8057]
[1764696103472,3.07,140.36,140.32,1.72371217]
[1764696104078,3.07,140.36,140.33,1.72371217]
[1764696104279,3.07,140.36,140.31,6.46257186]
[1764696104475,3.12442402,140.36,140.33,1.72394984]
[1764696104777,3.12442402,140.36,140.31,0.04927186]
[1764696104981,3.12442402,140.36,140.32,1.7242904]
[1764696106092,3.12442402,140.36,140.33,1.7242904]
[1764696106274,3.12442402,140.36,140.31,0.04927186]
[1764696106476,3.12442402,140.36,140.33,0.00439417]
[1764696106679,3.12442402,140.36,140.31,0.04927186]
[1764696106875,3.07,140.34,140.21,11.78170897]
[1764696107285,3.07,140.33,140.2,6.4182]
[1764696107577,3.07,140.33,140.18,120.34173997]
[1764696107578,3.07,140.31,140.26,1.72716545]
[1764696107780,3.07,140.29,140.27,0.05217279]
[1764696108674,3.07,140.29,140.18,6.4193]
[1764696108874,3.07,140.28,140.24,1.72894686]
[1764696109585,3.07,140.27,140.23,1.72894686]
[1764696109779,3.07,140.27,140.22,1.72978811]
[1764696109975,3.07,140.25,140.23,0.04741705]
[1764696110583,3.07,140.25,140.15,6.4205]
[1764696110781,3.07,140.25,140.21,1.72964321]
[1764696111575,3.12402527,140.24,140.22,0.04605041]
[1764696111976,3.12402527,140.24,140.23,1.72862718]
[1764696111977,0.05402527,140.24,140.23,1.72862718]
[1764696112287,0.05402527,140.24,140.22,0.04605041]
[1764696112678,0.05402527,140.24,140.23,1.42]
[1764696112998,0.05402527,140.24,140.22,0.04605041]
[1764696120193,3.12402527,140.24,140.22,0.04605041]
[1764696120489,3.12402527,140.24,140.23,1.73239684]
[1764696120893,3.12402527,140.24,140.22,0.04605041]
[1764696121190,0.05402527,140.24,140.16,8.705731]
[1764696121394,3.07,140.26,140.14,8.705731]
[1764696121579,3.07,140.26,140.13,8.705731]
[1764696121888,3.07,140.26,140.22,1.73339096]
[1764696122094,139.41,140.29,140.22,1.73339096]
[1764696122095,3.07,140.24,140.22,1.73339096]
[1764696122284,3.07,140.24,140.13,8.705731]
[1764696122487,0.04550658,140.2,140.14,6.4209]
[1764696122886,0.04550658,140.2,140.12,20.48743997]
[1764696123290,0.04550658,140.2,140.12,11.78170897]
[1764696123485,3.11550658,140.2,140.19,0.0040712]
[1764696123697,3.07,140.2,140.11,8.705731]
[1764696123906,0.05082603,140.17,140.11,8.705731]
[1764696124196,0.05082603,140.17,140.1,8.705731]
[1764696124394,0.05082603,140.17,140.13,6.4217]
[1764696124885,0.05082603,140.17,140.11,108.612231]
[1764696125086,0.05082603,140.17,140.12,99.8997]
[1764696125588,0.05082603,140.17,140.14,6.4212]
[1764696126388,0.05082603,140.17,140.15,6.4205]
[1764696126992,3.07,140.23,140.17,6.4195]
[1764696127193,3.07,140.23,140.21,1.73284372]
[1764696127494,3.07,140.23,140.17,6.4195]
[1764696127686,3.07,140.23,140.21,1.73278388]
[1764696128087,3.11984181,140.23,140.21,1.78360991]
[1764696128283,3.11984181,140.23,140.21,0.05082603]
[1764696128483,3.11984181,140.23,140.21,1.7838871]
[1764696128687,3.08,140.22,140.12,99.8997]
[1764696128890,3.08,140.22,140.19,1.73361238]
[1764696129296,3.08,140.22,140.18,0.00434903]
[1764696129605,3.08,140.19,140.05,8.705731]
[1764696129791,3.08,140.19,140.04,8.705731]
[1764696130097,3.1340826,140.13,140.04,8.705731]
[1764696130292,3.08,140.13,140.05,6.4252]
[1764696130595,3.08,140.13,140.02,8.705731]
[1764696130797,0.05185787,140.09,140.04,6.4254]
[1764696130989,3.13185787,140.09,140.04,6.4254]
[1764696131187,0.05185787,140.09,140.03,99.9653]
[1764696131386,0.05185787,140.09,140.06,99.9427]
[1764696131588,3.08,140.17,140.07,99.9334]
[1764696131790,3.08,140.17,140.16,1.73282389]
[1764696132092,12.22,140.22,140.16,1.73282389]
[1764696132093,3.08,140.22,140.16,1.73282389]
[1764696132287,3.08,140.22,140.18,1.73213203]
[1764696132486,3.08,140.2,140.19,0.04985327]
[1764696132684,3.08,140.2,140.1,99.9119]
[1764696133092,3.08,140.2,140.13,6.4216]
[1764696133497,3.08,140.2,140.18,0.0012577]
[1764696133698,3.08,140.2,140.11,6.4223]
[1764696134093,3.13066883,140.17,140.11,6.4223]
[1764696134289,3.13066883,140.17,140.06,99.9427]
[1764696134594,3.13322333,140.13,140.05,99.9506]
[1764696134990,3.13322333,140.13,140.06,6.4246]
[1764696135298,3.13322333,140.13,140.12,1.73066588]
[1764696136096,3.13322333,140.13,140.02,161.7717]
[1764696136302,0.05063006,140.09,140.02,161.7717]
[1764696136490,0.05063006,140.09,140.02,99.9717]
[1764696137399,0.05063006,140.09,140.01,73.60170897]
[1764696137700,0.05063006,140.09,140.01,73.58170897]
[1764696137888,0.05063006,140.09,140.03,6.426]
[1764696138288,0.05063006,140.09,139.98,113.08157679]
[1764696138289,3.13063006,140.09,139.98,11.78170897]
[1764696138492,3.08,140.13,140.01,111.75740897]
[1764696138696,3.08,140.13,140.1,1.7305661]
[1764696138899,3.08,140.13,140.02,1.15]
[1764696139202,3.08,140.11,140.02,1.15]
[1764696139603,3.08,140.07,140.05,0.04882349]
[1764696140097,3.08,140.06,139.98,1.15]
[1764696140295,3.08,140.06,140.04,1.73260334]
[1764696140501,3.08,140.06,139.98,1.15]
[1764696141101,0.04947649,140.03,139.98,1.15]
[1764696141599,3.12947649,140.03,139.94,2.93]
[1764696141906,0.0454549,140.0,139.94,2.93]
[1764696143800,0.0454549,140.0,139.96,6.4291]
[1764696144001,3.08,140.1,139.97,2.93]
[1764696144312,3.08,140.1,140.05,1.72888138]
[1764696144607,3.08,140.08,140.05,1.72888138]
[1764696145110,3.13445467,140.08,140.05,1.77748139]
[1764696145309,3.13445467,140.08,140.05,0.04860001]
[1764696145505,3.13445467,140.08,140.05,1.777573]
[1764696145695,0.05445467,140.08,140.06,1.72897299]
[1764696145904,3.13445467,140.08,140.07,1.72812937]
[1764696146198,0.05445467,140.08,140.07,1.72812937]
[1764696146603,0.05445467,140.08,140.05,2.92860001]
[1764696150703,0.05445467,140.08,140.06,2.88]
[1764696150903,3.13445467,140.08,140.05,0.04860001]
[1764696151801,3.13445467,140.08,140.07,1.73199394]
[1764696152004,3.08,140.06,140.05,0.04860001]
[1764696154303,0.05445467,140.08,140.05,0.04860001]
[1764696154511,0.05445467,140.08,140.06,1.73448188]
[1764696154810,3.23445467,140.08,140.07,1.73448188]
[1764696155004,3.23445467,140.08,140.05,0.04860001]
[1764696155309,3.23445467,140.08,140.07,1.73506742]
[1764696155503,0.05445467,140.08,140.07,1.73506742]
[1764696155911,0.05445467,140.08,140.07,4.62506742]
[1764696156107,0.05445467,140.08,140.07,2.89]
[1764696156301,0.05445467,140.08,140.05,2.93860001]
[1764696159511,3.16445467,140.08,140.05,0.04860001]
[1764696160008,0.05445467,140.08,140.05,2.93860001]
[1764696161001,3.16445467,140.08,140.05,0.04860001]
[1764696161807,0.05445467,140.08,140.05,0.04860001]
[1764696162007,0.05445467,140.08,140.05,2.93860001]
[1764696166520,3.16445467,140.08,140.05,0.04860001]
[1764696168412,3.16445467,140.08,140.06,1.74680863]
[1764696168715,3.11,140.07,140.01,2.89]
[1764696169114,3.11,140.07,139.99,3.12]
[1764696169406,3.11,140.05,139.93,3.12]
[1764696169611,3.11,140.05,140.01,1.74847368]
[1764696169806,3.11,140.05,139.93,3.12]
[1764696169807,3.16245007,140.04,139.93,3.12]
[1764696170010,3.11,140.04,139.94,3.12]
[1764696170210,0.05225941,140.0,139.94,3.12]
[1764696171016,0.05225941,140.0,139.97,6.4283]
[1764696171212,0.05225941,140.0,139.94,3.12]
[1764696171418,3.16225941,140.0,139.94,3.12]
[1764696171816,3.16225941,140.0,139.99,1.74932612]
[1764696172518,3.16225941,140.0,139.94,3.12]
[1764696172718,0.05225941,140.0,139.94,3.12]
[1764696173114,118.0,140.15,140.01,3.12]
[1764696173115,3.11,140.13,140.01,3.12]
[1764696173318,3.11,140.13,140.08,1.74676384]
[1764696173515,3.11,140.12,140.08,1.74676384]
[1764696173716,3.11,140.12,140.01,3.12]
[1764696173918,3.11,140.11,140.06,1.74856801]
[1764696174221,6.94439969,140.12,140.06,1.74856801]
[1764696174222,3.11,140.09,140.06,1.74856801]
[1764696174516,3.11,140.09,140.05,1.74856801]
[1764696174718,3.11,140.09,140.01,3.12]
[1764696175022,3.11,140.09,140.06,1.74961657]
[1764696175527,3.15933071,140.09,140.06,1.74961657]
[1764696176012,3.15933071,140.09,140.07,1.74961657]
[1764696176220,3.15933071,140.09,140.01,3.12]
[1764696176519,3.15933071,140.09,140.07,1.74920844]
[1764696177127,3.15933071,140.09,140.06,1.74920844]
[1764696177320,3.15933071,140.09,140.06,1.74947143]
[1764696178516,3.15933071,140.09,140.01,3.12]
[1764696178725,3.15933071,140.09,140.05,1.75228845]
[1764696179424,3.15933071,140.09,140.01,3.12]
[1764696179612,3.11,140.06,140.04,0.00257897]
[1764696179816,3.16429334,140.06,139.97,3.12]
[1764696180016,0.05473684,140.03,139.97,3.12]
[1764696180825,3.16473684,140.03,140.02,1.75416708]
[1764696181424,0.05473684,140.03,139.97,3.12]
[1764696181832,0.05473684,140.03,140.02,1.75452766]
[1764696182032,0.05473684,140.03,139.97,3.12]
[1764696182237,3.16473684,140.03,139.97,3.12]
[1764696182421,3.16473684,140.03,139.94,3.12]
[1764696182628,0.04569921,140.0,139.94,3.12]
[1764696183230,0.04569921,140.0,139.96,3.12]
[1764696183434,121.11,140.07,139.97,3.12]
[1764696183733,127.5344,140.06,140.04,1.75462743]
[1764696184134,121.11,140.06,140.04,1.75462743]
[1764696184629,121.11,140.06,140.04,1.80337629]
[1764696184822,3.16431028,140.06,140.05,1.75462743]
[1764696185022,3.16431028,140.06,140.04,0.04874886]
[1764696185220,0.05431028,140.06,140.05,1.75413072]
[1764696185626,0.05431028,140.06,140.05,1.75403268]
[1764696186034,3.16431028,140.06,140.05,1.75403268]
[1764696186229,3.16431028,140.06,140.05,0.29283577]
[1764696186433,3.16431028,140.06,140.04,0.04874886]
[1764696186736,0.05431028,140.06,140.04,0.04874886]
[1764696186928,3.16431028,140.06,140.04,0.04874886]
[1764696187126,0.05431028,140.06,140.04,0.04874886]
[1764696187836,0.05431028,140.06,140.05,1.75452195]
[1764696188537,0.05431028,140.06,140.05,4.87452195]
[1764696188738,0.05431028,140.06,140.05,3.12]
[1764696188932,0.05431028,140.06,140.04,3.31874886]
[1764696191133,0.05431028,140.06,140.04,0.04874886]
[1764696191332,0.05431028,140.06,140.05,1.75497632]
[1764696192135,0.05431028,140.06,140.04,0.04874886]
[1764696192737,0.05431028,140.06,140.04,3.31874886]
[1764696196149,0.05431028,140.06,140.04,0.04874886]
[1764696196455,9.45891028,140.06,140.04,0.04874886]
[1764696196658,2.98,140.05,140.04,0.04874886]
[1764696196857,2.98,140.04,139.94,3.27]
[1764696197058,6.4266,140.01,139.94,3.27]
[1764696197353,2.98,140.03,139.94,3.27]
[1764696197544,2.98,140.01,139.98,1.75778219]
[1764696198051,3.03302258,140.01,139.99,1.75778219]
[1764696198650,9.4071,140.0,139.98,1.75778219]
[1764696198856,2.98,140.0,139.98,1.75812798]
[1764696199060,0.05302258,140.01,139.98,5.02812798]
[1764696199250,0.05302258,140.01,139.99,5.02812798]
[1764696199446,0.05387979,140.01,140.0,3.27]
[1764696199651,0.05224385,140.02,140.0,3.27]
[1764696199845,0.05224385,140.02,139.94,6.94439969]
[1764696199846,0.05224385,140.02,139.97,3.27]
[1764696200052,0.05224385,140.02,140.01,1.75616421]
[1764696200252,0.05224385,140.02,139.97,3.27]
[1764696200561,0.05224385,140.02,139.98,3.27]
[1764696200763,0.04757016,140.01,139.98,3.27]
[1764696201561,6.47427016,140.01,140.0,1.7569906]
[1764696201765,3.03219567,140.02,140.0,1.7569906]
[1764696201949,0.05219567,140.02,140.0,1.7569906]
[1764696202151,0.05219567,140.02,140.01,1.7569906]
[1764696202357,0.05219567,140.02,139.97,3.27]
[1764696203158,0.05219567,140.02,139.98,3.27]
[1764696203549,0.05219567,140.02,140.01,1.75662929]
[1764696203951,0.05219567,140.02,139.98,3.27]
[1764696204156,0.05219567,140.02,140.01,1.75725162]
[1764696204372,0.05219567,140.02,139.98,3.27]
[1764696204664,0.05219567,140.02,140.01,1.758208]
[1764696205358,2.98,140.09,140.02,3.27]
[1764696205561,64.9,140.11,140.06,1.75656779]
[1764696205863,2.98,140.1,140.06,1.75656779]
[1764696206362,0.04943332,140.09,140.07,0.05020715]
[1764696207257,0.04943332,140.09,140.07,3.32020715]
[1764696207466,0.04943332,140.09,140.08,1.75651418]
[1764696207863,3.02943332,140.09,140.08,1.75651418]
[1764696208164,3.02943332,140.09,140.07,0.05020715]
[1764696208360,3.02943332,140.09,140.08,1.75659427]
[1764696208566,3.02943332,140.09,140.07,0.05020715]
[1764696208961,9.45253332,140.09,140.07,0.05020715]
[1764696209168,2.98,140.08,140.07,0.05020715]
[1764696211463,2.98,140.05,139.97,3.27]
[1764696211661,2.98,140.04,140.03,1.75981425]
[1764696212057,68.3047,140.05,140.03,1.75981425]
[1764696212257,2.98,140.05,140.03,1.75981425]
[1764696212456,0.04551269,140.05,140.03,1.75981425]
[1764696212658,0.04551269,140.05,140.04,1.75981425]
[1764696212856,0.04551269,140.05,139.99,3.27]
[1764696213160,0.04551269,140.05,140.04,3.04]
[1764696213468,0.05414002,140.06,140.04,3.04]
[1764696213673,0.05414002,140.06,140.05,1.75899521]
[1764696215070,6.4262,140.02,139.98,3.04]
[1764696215371,0.04965439,140.01,139.98,3.04]
[1764696216469,0.04965439,140.01,139.99,3.04]
[1764696220274,0.04965439,140.01,139.96,3.07]
[1764696220479,103.1801,140.04,139.96,3.07]
[1764696220480,0.04647628,140.0,139.96,3.07]
[1764696221077,0.04647628,140.0,139.99,3.07]
[1764696226596,99.9302,140.07,139.99,3.07]
[1764696226597,3.23,140.09,140.0,3.07]
[1764696226885,3.23,140.09,140.05,1.75961547]
[1764696227081,3.23,140.09,140.04,3.07]
[1764696227288,3.23,140.09,140.05,1.75953511]
[1764696227484,3.27618436,140.08,140.06,0.04971197]
[1764696227687,9.6542,140.07,140.06,0.04971197]
[1764696230393,3.23,140.07,140.06,0.04971197]
[1764696232685,0.04618436,140.08,140.06,0.04971197]
[1764696233090,3.27618436,140.08,140.06,0.04971197]
[1764696233285,0.04618436,140.08,140.06,6.47391197]
[1764696233494,0.04618436,140.08,140.07,1.76012062]
[1764696234191,0.04618436,140.08,140.07,4.83012062]
[1764696234394,3.23,140.14,140.09,3.07]
[1764696234585,3.23,140.14,140.11,1.75801885]
[1764696234887,3.23,140.14,140.07,6.4237]
[1764696235094,3.23,140.14,140.08,1.75790882]
[1764696235290,3.27533561,140.12,140.1,0.05156424]
[1764696236292,0.04533561,140.12,140.11,1.75700352]
[1764696236999,3.27533561,140.12,140.11,1.75700352]
[1764696237196,3.27533561,140.12,140.1,0.05156424]
[1764696238094,3.27533561,140.12,140.11,1.75536238]
[1764696238490,0.04533561,140.12,140.11,1.75536238]
[1764696240594,3.27533561,140.12,140.11,1.75536238]
[1764696241798,0.04533561,140.12,140.11,3.07]
[1764696242200,0.04533561,140.12,140.1,6.47386424]
[1764696242394,0.04533561,140.12,140.11,1.75284088]
[1764696242595,3.27533561,140.12,140.11,1.75284088]
[1764696242796,3.23,140.11,140.1,0.05156424]
[1764696243399,65.07533561,140.12,140.1,0.05156424]
[1764696244889,3.27533561,140.12,140.1,0.05156424]
[1764696248200,0.04533561,140.12,140.1,3.12156424]
[1764696248392,0.04533561,140.12,140.11,1.75292852]
[1764696248996,0.04533561,140.12,140.11,3.07]
[1764696249403,0.04533561,140.12,140.1,9.54356424]
[1764696249601,0.04533561,140.12,140.11,3.07]
[1764696250204,0.04533561,140.12,140.1,9.54356424]
[1764696250398,0.04533561,140.12,140.11,3.07]
[1764696250604,0.04533561,140.12,140.1,3.12156424]
[1764696250803,3.26533561,140.12,140.11,1.7522056]
[1764696251000,0.04533561,140.12,140.1,0.05156424]
[1764696251203,0.04533561,140.12,140.11,1.75232746]
[1764696253700,3.26533561,140.12,140.11,1.75232746]
[1764696255100,0.04533561,140.12,140.11,1.75232746]
[1764696255500,0.04533561,140.12,140.11,4.82232746]
[1764696255805,0.04533561,140.12,140.1,0.05156424]
[1764696256007,0.04533561,140.12,140.11,1.75099005]
[1764696256912,0.04533561,140.12,140.1,3.12156424]
[1764696257104,0.04533561,140.12,140.1,9.54386424]
[1764696257300,0.04533561,140.12,140.11,3.07]
[1764696258204,3.22,140.2,140.13,3.07]
[1764696258404,64.96,140.19,140.15,3.07]
[1764696259019,3.22,140.2,140.16,4.81804657]
[1764696259208,0.049111,140.19,140.17,1.7958161]
[1764696259507,0.049111,140.19,140.17,0.04776953]
[1764696260520,0.049111,140.19,140.17,1.79499833]
[1764696260697,0.049111,140.19,140.17,0.04776953]
[1764696261010,0.049111,140.19,140.17,1.79474878]
[1764696261209,0.049111,140.19,140.17,0.04776953]
[1764696261409,0.049111,140.19,140.17,1.79460725]
[1764696261605,139.26573445,140.24,140.17,1.79460725]
[1764696261606,3.22,140.29,140.18,3.07]
[1764696261806,3.22,140.31,140.25,1.74373424]
[1764696262009,3.22,140.31,140.26,1.74373424]
[1764696262307,3.22,140.31,140.2,4.62664424]
[1764696262507,3.22,140.29,140.24,1.74050176]
[1764696262698,3.22,140.26,140.24,1.79495322]
[1764696262900,3.22,140.26,140.24,0.05445146]
[1764696263104,3.22,140.26,140.24,1.79566051]
[1764696263309,3.22,140.26,140.24,0.05445146]
[1764696263611,3.22,140.26,140.24,1.79447594]
[1764696263809,3.22,140.26,140.14,104.50264424]
[1764696264012,3.22,140.26,140.21,1.74090562]
[1764696264411,3.22,140.25,140.2,1.74090562]
[1764696264617,3.22,140.25,140.14,11.04684424]
[1764696264803,0.04872144,140.21,140.2,1.73957205]
[1764696265004,0.05233532,140.22,140.2,1.73957205]
[1764696265208,0.05233532,140.22,140.21,1.73957205]
[1764696265608,3.27233532,140.22,140.19,0.05084405]
[1764696265813,3.27233532,140.22,140.2,1.73873575]
[1764696268115,3.22,140.28,140.19,0.05084405]
[1764696268316,5.03492491,140.31,140.21,1.73898455]
[1764696268522,3.22,140.33,140.22,99.8193]
[1764696268722,3.22,140.33,140.27,1.73898455]
[1764696269021,3.22,140.33,140.19,106.2562]
[1764696269220,3.22,140.33,140.27,1.73697499]
[1764696269426,16.84334081,140.36,140.25,0.04740008]
[1764696269427,0.04720165,140.27,140.25,0.04740008]
[1764696269725,3.22,140.3,140.26,1.73677543]
[1764696269929,0.0491704,140.27,140.26,1.73677543]
[1764696270423,3.2691704,140.27,140.25,0.05466364]
[1764696272222,4.6891704,140.27,140.12,99.8895]
[1764696272429,3.22,140.24,140.12,99.8895]
[1764696272725,3.22,140.23,140.12,99.8895]
[1764696273119,0.05120052,140.19,140.16,0.04776565]
[1764696273320,3.30120052,140.19,140.16,0.04776565]
[1764696273613,0.05120052,140.19,140.16,0.04776565]
[1764696274027,0.05120052,140.19,140.18,1.73827073]
[1764696274332,3.30120052,140.19,140.17,1.73827073]
[1764696274721,3.30120052,140.19,140.16,0.04776565]
[1764696274923,3.25,140.18,140.06,127.67365738]
[1764696275123,3.25,140.18,140.06,21.31875738]
[1764696275321,3.25,140.18,140.05,99.9369]
[1764696275528,3.25,140.16,140.05,121.05376226]
[1764696275724,3.25,140.16,140.14,1.74103368]
[1764696275920,3.29605411,140.16,140.14,1.79138497]
[1764696276125,3.29605411,140.16,140.14,0.05035129]
[1764696276324,3.29605411,140.16,140.14,1.7915557]
[1764696276628,3.29605411,140.16,140.14,0.05035129]
[1764696276829,3.29605411,140.16,140.14,1.79102407]
[1764696277033,3.25,140.15,140.0,99.9742]
[1764696277332,67.65,140.14,140.1,1.74206266]
[1764696277537,3.25,140.13,140.1,1.74206266]
[1764696278025,3.30441851,140.13,140.1,1.77750888]
[1764696278221,3.30441851,140.13,140.1,0.03544622]
[1764696278423,3.30441851,140.13,140.1,1.77964337]
[1764696278635,3.30441851,140.13,140.1,0.03544622]
[1764696279019,0.05441851,140.13,140.11,1.74394863]
[1764696279226,0.05441851,140.13,140.12,1.74394863]
[1764696279531,0.05441851,140.13,140.1,0.03544622]
[1764696279727,0.05441851,140.13,140.12,1.74410236]
[1764696280326,67.54,140.2,140.12,1.42]
[1764696280631,67.54,140.2,140.15,1.74306272]
[1764696280830,3.12,140.19,140.15,1.74306272]
[1764696281335,0.04627067,140.18,140.16,0.04495672]
[1764696281730,3.16627067,140.18,140.16,0.04495672]
[1764696282433,3.16627067,140.18,140.09,6.54033036]
[1764696282627,67.48,140.18,140.13,1.74475842]
[1764696282826,3.12,140.18,140.14,1.74475842]
[1764696283026,3.12,140.18,140.11,6.54033036]
[1764696283027,67.48,140.18,140.15,1.74475842]
[1764696283230,67.48,140.18,140.11,6.54033036]
[1764696283434,0.05355127,140.16,140.15,1.74426979]
[1764696283830,0.05355127,140.16,140.13,0.04490801]
[1764696284025,3.12,140.15,140.14,1.74432321]
[1764696284432,3.12,140.15,140.13,0.04490801]
[1764696284934,3.12,140.15,140.08,6.54033036]
[1764696285140,3.12,140.15,140.1,1.74549975]
[1764696285433,3.12,140.13,140.06,6.54033036]
[1764696285625,3.12,140.11,140.05,6.54033036]
[1764696285824,0.0517912,140.09,140.04,6.54033036]
[1764696286430,3.1717912,140.09,140.08,1.74621559]
[1764696286731,3.1717912,140.09,140.03,6.54033036]
[1764696286936,13.36035427,140.11,140.02,6.54033036]
[1764696286937,3.17264221,140.07,140.02,6.54033036]
[1764696287626,0.05264221,140.07,140.02,6.54033036]
[1764696287834,0.05264221,140.07,140.03,6.54033036]
[1764696288037,0.04698496,140.06,140.03,6.54033036]
[1764696288238,0.04698496,140.06,140.02,6.54033036]
[1764696289439,3.12,140.09,140.02,6.54033036]
[1764696289636,3.12,140.09,140.06,1.74595809]
[1764696290531,0.04658401,140.09,140.07,1.74595809]
[1764696290836,0.04658401,140.09,140.06,0.04698452]
[1764696291038,0.04658401,140.09,140.07,1.74527246]
[1764696291237,0.04658401,140.09,140.08,1.74527246]
[1764696291437,0.04658401,140.09,140.06,0.04698452]
[1764696291634,0.04658401,140.09,140.08,1.74501454]
[1764696294040,0.04658401,140.09,140.06,0.04698452]
[1764696294236,0.04658401,140.09,140.06,6.58731488]
[1764696294534,3.12,140.15,140.07,6.54033036]
[1764696294739,3.12,140.15,140.11,1.74364176]
[1764696295445,0.05320687,140.14,140.12,0.05225812]
[1764696295635,3.17320687,140.14,140.12,0.05225812]
[1764696297952,0.05320687,140.14,140.12,0.05225812]
[1764696298148,0.05320687,140.14,140.13,1.741776]
[1764696298646,3.12,140.21,140.13,1.42]
[1764696298947,3.12,140.21,140.17,1.74018703]
[1764696299750,3.12,140.19,140.18,0.05318872]
[1764696299955,0.05076215,140.2,140.18,0.05318872]
[1764696301759,3.12,140.26,140.19,6.54033036]
[1764696301951,3.12,140.26,140.24,1.73795546]
[1764696302352,3.12,140.26,140.23,1.73795546]
[1764696302553,3.12,140.26,140.18,6.54033036]
[1764696302851,3.12,140.26,140.23,1.73768391]
[1764696303052,3.16700877,140.26,140.23,1.73768391]
[1764696303249,0.04700877,140.26,140.23,1.73768391]
[1764696303448,0.04700877,140.26,140.25,1.73768391]
[1764696303649,0.04700877,140.26,140.24,0.04747624]
[1764696303855,0.05126116,140.26,140.25,1.7346831]
[1764696304058,0.05126116,140.26,140.24,0.053829]
[1764696304456,0.05126116,140.26,140.25,1.73326786]
[1764696305865,0.05126116,140.26,140.25,1.73416476]
[1764696306160,0.05126116,140.26,140.24,0.053829]
[1764696307752,0.05126116,140.26,140.25,1.73426258]
[1764696308356,3.17126116,140.26,140.24,0.053829]
[1764696308957,9.58676116,140.26,140.24,0.053829]
[1764696310056,0.05126116,140.26,140.24,0.053829]
[1764696310257,0.05126116,140.26,140.25,1.73499057]
[1764696311660,3.19126116,140.26,140.16,6.54033036]
[1764696311856,3.14,140.26,140.15,6.54033036]
[1764696312056,6.4156,140.25,140.15,6.54033036]
[1764696312252,3.14,140.26,140.15,6.54033036]
[1764696312456,3.14,140.26,140.14,6.93805427]
[1764696312457,3.14,140.26,140.17,6.93805427]
[1764696312766,3.14,140.28,140.24,1.73464209]
[1764696312963,3.18519775,140.27,140.25,0.05051703]
[1764696313466,3.14,140.26,140.25,0.05051703]
[1764696315761,9.59999775,140.27,140.25,0.05051703]
[1764696316365,6.45999775,140.27,140.25,0.05051703]
[1764696316560,0.04519775,140.27,140.26,1.73359165]
[1764696316964,0.04519775,140.27,140.25,0.05051703]
[1764696317362,3.14,140.34,140.25,1.47051703]
[1764696317571,9.5518,140.34,140.3,1.73160775]
[1764696317972,3.14,140.34,140.3,1.73160775]
[1764696318163,6.4125,140.32,140.3,1.73160775]
[1764696318362,6.46712309,140.32,140.3,1.78133404]
[1764696318568,6.46712309,140.32,140.3,0.04972629]
[1764696318774,6.46712309,140.32,140.3,1.78036767]
[1764696319066,3.14,140.34,140.3,1.78036767]
[1764696319067,99.7237,140.36,140.3,0.04972629]
[1764696319266,99.7237,140.36,140.3,1.77902332]
[1764696319474,6.4125,140.32,140.3,0.04972629]
[1764696319667,6.4125,140.32,140.3,1.77911942]
[1764696319867,106.66835427,140.35,140.21,6.93805427]
[1764696320272,99.753,140.32,140.21,6.93805427]